[Event "Chhattisgarh Masters GM 2022"]
[Site "Chhattisgarh"]
[Date "2022.09.19"]
[Round "1.6"]
[White "Varshini V Kundar"]
[Black "Kushagra Mohan"]
[Result "0-1"]
[ECO "B15"]
[WhiteElo "1096"]
[BlackElo "2431"]
[Annotator "TA"]
[PlyCount "68"]
[EventDate "2022.09.19"]
[EventCountry "IND"]
[SourceTitle "playchess.com"]
[Source "ChessBase"]
[SourceQuality "1"]
[TimeControl "5400+30"]

{[%evp 14,68,38,34,24,40,29,33,51,47,50,37,47,48,49,20,59,0,0,-24,-18,-124,-111,-436,-30,-425,0,0,0,0,0,0,0,0,0,0,0,0,7,19,56,-10,-20,-38,11,20,219,165,155,0,0,-599,-400,-1318,-1427,-1231,-1158]} 1. e4 {[%emt 0:00:08]} c6 {[%emt 0:00:15]} 2. d4 {[%emt 0:00:16]} d5 {[%emt 0:00:03]} 3. Nc3 {[%emt 0:00:23]} dxe4 {[%emt 0:00:04]} 4. Nxe4 {[%emt 0:00:08]} Nf6 {[%emt 0:00:02]} 5. Nxf6+ {[%emt 0:00:50]} exf6 {[%emt 0:00:02]} 6. c3 {[%emt 0:00:59]} Bd6 {[%emt 0:00:03]} 7. Bd3 {[%emt 0:00:18]} O-O {[%emt 0:00:07]} 8. Qc2 {[%emt 0:01:04] BESTDEEP} Re8+ {[%emt 0:00:09] EASY. B15: Caro-Kann: 3 Nc3: 3...g6 and 3...dxe4 4 Nxe4 Nf6 5 Nxf6+ exf6.} 9. Ne2 {[%emt 0:00:09] EASY} h5 {[%emt 0:00:05]} 10. O-O {[%emt 0:01:35]} h4 {[%emt 0:00:13] CPLX 2.9 18 (Nb8-d7) (=6). White is slightly better.} 11. h3 {[%emt 0:00:51] BESTDEEP} Nd7 {[%emt 0:00:35] CPLX 2.9} 12. Be3 {[%emt 0:00:51] CPLX 2.7 13 (Bc1-d2) (=3)} Nf8 {[%emt 0:04:53] CPLX 2.7 10 (Bd6-c7) (=6)} 13. Rad1 {[%emt 0:01:04] CPLX 2.6 0 (Ra1-e1) (=2)} Bc7 {[%emt 0:03:33] BESTDEEP} 14. Rfe1 {[%emt 0:03:42] CPLX 2.6 29 (c3-c4) (=6)} Ne6 {[%emt 0:04:30] [#] CPLX 2.7 39 (g7-g5) (=10)} 15. d5 $146 {[%emt 0:33:44] CPLX 2.6 59 (Kg1-f1) (=13)} (15. Kf1 $14) ({Predecessor:} 15. Qd2 Qd6 16. Bf4 Nxf4 17. Qxf4 Be6 18. Qxd6 Bxd6 19. a3 Rad8 20. Kf1 g5 21. Ng1 {1-0 (65) Gabrielian,A (2463)-Swiercz,D (2649) Chess.com INT 2020}) 15... cxd5 $11 {[%emt 0:01:39] EASY} 16. Bb5 {[%emt 0:00:05] CPLX 2.8 24 (Bd3-h7) (=14)} Re7 {[%emt 0:06:25] EASY} 17. c4 {[%emt 0:01:44] RELBLUND 106 (a2-a3) (=23)} (17. a3 $11 {keeps the balance.}) 17... Qd6 $1 $17 {[%emt 0:02:33] EASY} 18. cxd5 $2 {[%emt 0:21:02][%mdl 8192] RELBLUND 325 (Ne2-f4) (=51)} ({Avoid the trap} 18. Kf1 $2 Qh2 19. f4 Ba5 $19) (18. Nf4 $17 {is tougher.} Nxf4 19. Bxf4 Qxf4 20. Rxe7) 18... Qh2+ $19 {[%emt 0:00:53] CPLX 4.3=>BLUNDERREACT} 19. Kf1 {[%emt 0:00:03] LEGAL} Nf4 {[%emt 0:04:51] MISS-Ne6-g5 400 (Ne6-g5) (=39)} ({Better is} 19... Ng5 $19 20. d6 Bxd6) 20. Bxf4 $1 $11 {[%emt 0:06:34] DEEPSTRONG=>BLUNDERREACT} Bxf4 {[%emt 0:00:08] Chess con chili. RECAPT} 21. Ng1 {[%emt 0:01:01] EASY} Re5 {[%emt 0:06:39] CPLX 4.8} 22. Rxe5 {[%emt 0:03:51] CPLX 4.6} Bxe5 {[%emt 0:00:50] RECAPT} 23. d6 {[%emt 0:10:07] Black must now prevent d7. BESTDEEP} Be6 {[%emt 0:03:12] BESTDEEP} 24. d7 {[%emt 0:06:00] Prevents Rc8. CPLX 3.7} Rd8 $1 {[%emt 0:01:16] CPLX 4.1} 25. Qe4 {[%emt 0:01:46] CPLX 4.1 0 (Qc2-c5) (=31)} (25. Qc5 $5 {[%cal Rc5a7]}) 25... Qf4 {[%emt 0:07:25] CPLX 4.1 7 (a7-a6) (=26)} ({Don't take} 25... Bxa2 26. Qa4 Be6 27. Qxa7 $14) 26. Qxb7 {[%emt 0:01:44] BESTDEEP} Qb4 {[%emt 0:00:10] Strongly threatening ...Bc4+. CPLX 3.8 37 (Be5-d4) (=27)} 27. Qc6 {[%emt 0:02:22] Against Bc4+. RELBLUND 66 (b2-b3) (=31)} (27. b3 $14) 27... Qxb2 $40 {[%emt 0:01:43][%mdl 128] Black is up to no good. BESTDEEP} 28. Nf3 {[%emt 0:00:23] [#] Against Bd4. CPLX 4.0 18 (a2-a4) (=30)} Bb8 {[%emt 0:14:15] CPLX 4.2 49 (Be5-c7) (=27)} (28... Bc7 $1 $15) 29. a4 {[%emt 0:00:06] BESTDEEP} g5 $2 {[%emt 0:02:54] RELBLUND 199 (Qb2-b3) (=35)} (29... Qb3 $11 30. Rd4 (30. Be2 Qb4 $11) 30... Qa3) 30. Qc5 {[%emt 0:01:19] MISS-Nf3-d4 54 (Nf3-d4) (=30)} Qb3 {[%emt 0:05:30] [#] CPLX 3.9} 31. Re1 {[%emt 0:01:15] MISSDEEP-Kf1-e2 155 (Kf1-e2) (=35)} (31. Ke2 $1 $16) 31... Bxd7 {[%emt 0:03:01] Threatens to win with ...Rc8. EASY} 32. Nxg5 $2 {[%emt 0:00:32][%mdl 8192] RELBLUND 400 (Bb5-c4) (=50)} Bd6 {[%emt 0:04:17] CPLX 4.1 199 (Rd8-c8) (=38)} 33. Qd4 {[%emt 0:00:32] CPLX 4.2 400 (Bb5-c4) (=63)} (33. Bc4 $142 Bxc5 34. Bxb3 fxg5 35. Re5) 33... Bxb5+ $19 {[%emt 0:00:17] CPLX 4.1=>BLUNDERREACT} 34. axb5 {[%emt 0:00:16] RECAPT} Qxb5+ {[%emt 0:00:11] Quite a comeback for Black.  Weighted Error Value: White=0.76/Black=0.45} 0-1

[Event "Chhattisgarh Masters GM 2022"]
[Site "Chhattisgarh"]
[Date "2022.09.19"]
[Round "1.7"]
[White "Koustav Chatterjee"]
[Black "Gaurav Rajesh Zagade"]
[Result "1-0"]
[ECO "A64"]
[WhiteElo "2513"]
[BlackElo "2160"]
[Annotator "TA"]
[PlyCount "63"]
[EventDate "2022.09.19"]
[EventCountry "IND"]
[SourceTitle "playchess.com"]
[Source "ChessBase"]
[SourceQuality "1"]
[TimeControl "5400+30"]

{[%evp 25,63,17,15,0,67,71,59,60,75,53,139,114,172,147,183,184,160,190,556,281,274,287,444,445,426,436,733,721,791,782,1206,1176,1444,1438,1587,1600,2256,1814,1533,1108]} 1. Nf3 {[%emt 0:01:26]} Nf6 {[%emt 0:00:11]} 2. c4 {[%emt 0:00:05]} g6 {[%emt 0:00:11]} 3. g3 {[%emt 0:00:06]} Bg7 {[%emt 0:00:22]} 4. Bg2 {[%emt 0:00:06]} d6 {[%emt 0:01:24]} 5. d4 {[%emt 0:00:11]} O-O {[%emt 0:00:22]} 6. Nc3 {[%emt 0:00:24]} c5 {[%emt 0:00:54]} 7. d5 {[%emt 0:04:43]} a6 {[%emt 0:06:13]} 8. a4 {[%emt 0:00:23]} e6 {[%emt 0:00:44]} 9. O-O {[%emt 0:00:18]} exd5 {[%emt 0:01:38]} 10. cxd5 {[%emt 0:00:05]} Re8 {[%emt 0:00:43]} 11. Nd2 {[%emt 0:01:09]} Nbd7 {[%emt 0:04:24]} 12. h3 {[%emt 0:09:04]} Rb8 {[%emt 0:04:56]} 13. Nc4 {[%emt 0:07:26]} Ne5 {[%emt 0:06:23] CPLX 2.2} 14. Na3 {[%emt 0:00:57] BESTDEEP. A64: Modern Benoni: Fianchetto Variation: 9...Nbd7 10 Nd2 a6 11 a4 Re8.} Qc7 {[%emt 0:10:08] RELBLUND 67 (Nf6-h5) (=34)} (14... Nh5 $11) 15. f4 $14 {[%emt 0:06:18] CPLX 2.3} Ned7 {[%emt 0:00:23] EASY} 16. e4 {[%emt 0:07:49][%cal Be2e4,Be4e5,Be5d6][%mdl 32] CPLX 2.1. White is slightly better.} c4 {[%emt 0:09:14] BESTDEEP} 17. Be3 {[%emt 0:15:15] EASY} Nh5 {[%emt 0:25:34] CPLX 2.2 86 (Nd7-c5) (=31)} ({Black should try} 17... Nc5 $14 18. e5 (18. Nxc4 Nfxe4 19. Nxe4 Nxe4 $17) 18... Nb3) 18. Kh2 {[%emt 0:09:31] CPLX 2.6 25 (Qd1-f3) (=5)} Nc5 {[%emt 0:07:23] CPLX 2.8 58 (f7-f5) (=35)} (18... f5 $16) 19. g4 $18 {[%emt 0:05:02] CPLX 3.5} (19. Nxc4 Bxc3 20. e5 {[#]} (20. bxc3 Nxe4 21. g4 Qxc4 $17) 20... Ne4 $1 $11) 19... Bxc3 {[%emt 0:06:14] CPLX 3.4 36 (Nh5xf4) (=35)} 20. bxc3 {[%emt 0:00:23] [#] aiming for Bxc5. RECAPT} Nf6 $146 {[%emt 0:01:45] CPLX 3.2 0 (Nh5-g7) (=31)} (20... Nxe4 $2 21. gxh5 b5 22. hxg6 fxg6 23. axb5 axb5 24. Bd4 $18) ({Predecessor:} 20... Ng7 21. e5 b5 22. axb5 axb5 23. Nc2 Nd3 24. Nb4 Nxb4 25. cxb4 Bb7 26. Bd4 dxe5 27. Bxe5 Rxe5 {1-0 (64) Gonzalez Garcia,J (2521)-Baules,J (2349) Mexico City 2010}) 21. e5 {[%emt 0:06:22] EASY} (21. Nxc4 Ncxe4 22. Qd4 b5 $15) 21... Nd3 $2 {[%emt 0:03:44] CPLX 3.2 366 (Nc5-b3) (=68)} (21... Nb3 {is tougher.}) 22. exd6 {[%emt 0:02:09] MISSDEEP-e5xf6 275 (e5xf6) (=33)} Qd8 {[%emt 0:01:15] BESTDEEP=>BLUNDERREACT} 23. Nxc4 {[%emt 0:09:54] CPLX 3.4} b5 {[%emt 0:04:28] CPLX 3.5 157 (Nd3-b2) (=70)} (23... Nb2 {was called for.} 24. Nxb2 (24. Bb6 Nxg4+ 25. Qxg4 Bxg4 $18) 24... Rxe3) 24. axb5 {[%emt 0:03:00] CPLX 4.0. White is clearly winning.} ({Weaker is} 24. Qxd3 bxc4 25. Qd4 Bxg4 $16) 24... axb5 {[%emt 0:00:09] RECAPT} 25. Ne5 {[%emt 0:02:22] CPLX 3.9} ({Not} 25. Qxd3 bxc4 26. Qd4 Bxg4 $16) 25... Nb2 {[%emt 0:01:30] EVAL 297 (Nd3xe5) (=82)} (25... Nxe5 $142 26. fxe5 Rxe5) 26. Qb3 {[%emt 0:03:00] EVAL} Nd3 {[%emt 0:01:50] EVAL 70 (Qd8xd6) (=81)} 27. Bd4 {[%emt 0:00:09] EVAL} Rxe5 {[%emt 0:00:57] BEVAL 400 (Qd8xd6) (=102)} 28. fxe5 {[%emt 0:00:34] BEVAL} Nxg4+ {[%emt 0:00:28] BEVAL 268 (Nd3xe5) (=113)} 29. hxg4 {[%emt 0:00:15] BEVAL} Qh4+ {[%emt 0:00:10] BEVAL 149 (Qd8-g5) (=115)} 30. Kg1 {[%emt 0:00:04] BEVAL} Bxg4 {[%emt 0:00:21] BEVAL 400 (Qh4xg4) (=131)} 31. Qc2 {[%emt 0:00:28] BEVAL 400 (e5-e6) (=39)} Qg3 {[%emt 0:00:15] BEVAL} 32. Bf2 {[%emt 0:00:05] White took control after the opening.  Weighted Error Value: White=0.27 (precise) /Black=0.78} 1-0

[Event "Chhattisgarh Masters GM 2022"]
[Site "Chhattisgarh"]
[Date "2022.09.19"]
[Round "1.7"]
[White "Neverov, Valeriy"]
[Black "Praloy Sahoo"]
[Result "1-0"]
[ECO "A09"]
[WhiteElo "2430"]
[BlackElo "2117"]
[Annotator "TA"]
[PlyCount "77"]
[EventDate "2022.09.19"]
[EventCountry "IND"]
[SourceTitle "playchess.com"]
[Source "ChessBase"]
[SourceQuality "1"]
[TimeControl "5400+30"]

{[%evp 15,77,10,22,18,25,22,26,-3,83,36,28,2,27,23,20,0,0,-6,-7,-4,0,0,0,-12,0,-5,0,-16,0,-7,0,-2,25,-31,166,177,185,69,69,66,60,63,78,66,166,152,200,193,261,246,265,245,253,232,499,484,576,494,570,418,411,389,596,-1062]} 1. Nf3 {[%emt 0:00:16]} d5 {[%emt 0:00:14]} 2. c4 {[%emt 0:01:29]} d4 {[%emt 0:00:56]} 3. b4 {[%emt 0:02:38]} g6 {[%emt 0:03:47]} 4. g3 {[%emt 0:11:59]} Bg7 {[%emt 0:00:34]} 5. d3 {[%emt 0:00:11]} e5 {[%emt 0:02:03]} 6. Bg2 {[%emt 0:00:05]} Ne7 {[%emt 0:00:30]} 7. O-O {[%emt 0:04:10]} O-O {[%emt 0:00:25]} 8. Nbd2 {[%emt 0:00:23]} a5 {[%emt 0:12:51] CPLX 2.0 12 (Nb8-d7) (=12)} 9. b5 {[%emt 0:01:04] CPLX 2.1. A09: Réti Opening: 1 Nf3 d5 2 c4.} Nd7 {[%emt 0:00:28] CPLX 2.0 7 (Ra8-a7) (=10)} 10. Ba3 {[%emt 0:01:26] EASY} Re8 {[%emt 0:02:48] CPLX 2.3} 11. Qc2 {[%emt 0:09:48] [#] CPLX 2.1 29 (Nd2-e4) (=10). White has an edge.} c5 $146 {[%emt 0:08:19] RELBLUND 86 (Ra8-b8) (=26)} (11... Rb8 $11 {keeps the balance.}) ({Predecessor:} 11... Nb6 12. Rfe1 Nf5 13. Rab1 Bf8 14. Bxf8 Kxf8 15. e3 dxe3 16. fxe3 Qe7 17. Ne4 Nd7 18. d4 Nd6 19. Nf2 e4 20. Nd2 f5 21. c5 {½-½ (21) Roeder,M (2395)-De Strycker,N (2194) Belgium 2018}) 12. bxc6 {[%emt 0:06:32] White is more active. CPLX 2.0 47 (Nd2-e4) (=19)} (12. Ne4 $1 $16) 12... Nxc6 $14 {[%emt 0:00:16] RECAPT} 13. Rab1 {[%emt 0:01:19] Prevents Nb4. CPLX 2.3 26 (Nd2-e4) (=20)} Ndb8 {[%emt 0:23:22] CPLX 2.4 25 (Nc6-b4) (=22)} (13... Nb4 $5 14. Bxb4 axb4 $11) 14. Rb5 {[%emt 0:19:09] CPLX 2.5 4 (Nd2-e4) (=18)} Na6 {[%emt 0:01:53][%cal Bb8a6,Ba6c7,Bc7e6,Be6c5,Bc5a4,Ba4c3][%mdl 32] BESTDEEP} 15. Qa4 {[%emt 0:00:27] CPLX 2.6 20 (c4-c5) (=18)} Nc7 {[%emt 0:01:41] CPLX 2.6} 16. Rb2 {[%emt 0:01:17] CPLX 2.8 6 (Rb5-b6) (=17)} Nb4 {[%emt 0:03:29] CPLX 2.5} 17. Bxb4 {[%emt 0:01:53] EASY} axb4 {[%emt 0:05:31] RECAPT} 18. Qxb4 {[%emt 0:00:08] RECAPT} Bf8 {[%emt 0:05:00] BESTDEEP} 19. Qb3 {[%emt 0:00:32] CPLX 3.0 12 (Qb4-b6) (=13)} Ne6 {[%emt 0:03:03][%mdl 1024] Black has compensation. BESTDEEP} 20. Qc2 {[%emt 0:03:59] CPLX 2.4 5 (Qb3-b6) (=12)} (20. Nxe5 $2 Nc5 21. Nxf7 Kxf7 $19) 20... Nc5 {[%emt 0:00:33] CPLX 2.4} 21. Ra1 {[%emt 0:05:01] CPLX 2.4 16 (Rb2-b1) (=13)} f5 {[%emt 0:10:35] CPLX 2.4 16 (Nc5-a4) (=10)} 22. Nb3 {[%emt 0:04:46] CPLX 2.4 7 (Nf3-e1) (=12)} Na4 $1 {[%emt 0:01:23] DEEPSTRONG} 23. Rbb1 {[%emt 0:00:04] EASY} Ra7 {[%emt 0:05:12] CPLX 2.3 27 (Bf8-g7) (=11)} 24. e3 {[%emt 0:07:04] RELBLUND 56 (Rb1-e1) (=14)} ({White should play} 24. Re1 $11) 24... Bg7 $2 {[%emt 0:06:14] RELBLUND 197 (d4xe3) (=22)} (24... dxe3 $1 $15 {keeps the upper hand.} 25. fxe3 b6) 25. exd4 $18 {[%emt 0:02:31] CPLX 2.6=>BLUNDERREACT} exd4 {[%emt 0:00:10] [#] RECAPT} 26. Re1 {[%emt 0:01:49] CPLX 2.4 116 (Nf3xd4) (=19)} (26. Nfxd4 $1 $18 {[%mdl 512] Hoping for Nb5.} Bxd4 (26... Ra6 27. Re1) 27. Bd5+ Be6 28. Nxd4 Bxd5 29. cxd5) 26... Rxe1+ $1 $14 {[%emt 0:01:21] DEEPSTRONG=>BLUNDERREACT} 27. Rxe1 {[%emt 0:00:04][%cal Of3d4] RECAPT} Nc3 {[%emt 0:00:08] EASY} 28. Nc1 {[%emt 0:03:46] CPLX 2.8 0 (Qc2-c1) (=17)} Bd7 {[%emt 0:00:57] CPLX 2.6 15 (Bg7-f6) (=18)} 29. Qd2 {[%emt 0:02:41] MISS-Nf3-e5 12 (Nf3-e5) (=17)} Ra5 {[%emt 0:00:43] [#] CPLX 2.6 100 (b7-b5) (=22)} ({Black should try} 29... b5 $14) 30. Qf4 $1 $18 {[%emt 0:02:54] DEEPSTRONG=>BLUNDERREACT} Bc6 {[%emt 0:00:32] CPLX 2.9 48 (Ra5-a6) (=23)} (30... Ra6 $16 31. Nb3 (31. Nxd4 g5 $16) 31... Rxa2) 31. Ng5 {[%emt 0:02:51] Strongly threatening Bxc6. CPLX 3.2} Bh6 {[%emt 0:00:27] CPLX 3.9 68 (Ra5-a8) (=25)} (31... Ra8 {was worth a try.} 32. Ne6 Qe7) 32. h4 {[%emt 0:00:05][%cal Bh2h4,Bh4g5][%mdl 32] And now Bxc6 would win. CPLX 4.3} Bxg2 {[%emt 0:00:34] CPLX 4.1} 33. Kxg2 {[%emt 0:00:06] RECAPT 20 (Nc1-b3) (=15)} b5 {[%emt 0:00:15] CPLX 3.5 8 (Ra5-a8) (=23)} 34. Nb3 $40 {[%emt 0:02:36][%csl LRa5,LRd4][%cal Bc1b3,Bb3d4,Bd4e6][%mdl 160] White wants a kill. EASY} Rxa2 {[%emt 0:00:33] CPLX 4.3 267 (Ra5-a8) (=32)} (34... Ra8 35. c5 (35. Nxd4 Bxg5 36. hxg5 bxc4 $16) (35. Qxd4 Qxd4 36. Nxd4 bxc4 $16) 35... Rc8) 35. Nxd4 {[%emt 0:01:15] Black must now prevent Nc6. DEEPSTRONG=>BLUNDERREACT} Bxg5 {[%emt 0:00:26] CPLX 4.6 92 (b5xc4) (=35)} 36. hxg5 {[%emt 0:00:47] aiming for Nc6. RECAPT} bxc4 {[%emt 0:00:25] CPLX 3.7 76 (Nc3-e4) (=36)} 37. Ne6 {[%emt 0:00:52] CPLX 4.4 152 (Nd4-f3) (=18)} Qd5+ {[%emt 0:00:50] CPLX 4.8} 38. Kh2 {[%emt 0:00:37] White threatens Qb8+ and mate. CPLX 4.6 22 (Kg2-h3) (=18)} Re2 {[%emt 0:00:00] CPLX 4.9 207 (Ra2-b2) (=40)} (38... Rb2 $142 39. Qe3 (39. dxc4 Qd2 $11) 39... Re2 40. Rxe2 Nxe2 41. dxc4 (41. Qxe2 cxd3 42. Qe3 d2 $11) 41... Qe4) 39. Rd1 $4 {[%emt 0:01:26][%mdl 40960] Weighted Error Value: White=0.22 (precise) /Black=0.53. Loss on time!?} 1-0

[Event "Chhattisgarh Masters GM 2022"]
[Site "Chhattisgarh"]
[Date "2022.09.19"]
[Round "1.7"]
[White "Aradhya, Garg"]
[Black "Arya Bhakta"]
[Result "1-0"]
[ECO "D37"]
[WhiteElo "2332"]
[BlackElo "2053"]
[Annotator "TA"]
[PlyCount "68"]
[EventDate "2022.09.19"]
[EventCountry "IND"]
[SourceTitle "playchess.com"]
[Source "ChessBase"]
[SourceQuality "1"]
[TimeControl "5400+30"]

{[%evp 15,68,2,22,15,11,19,14,14,20,0,20,12,11,0,18,14,22,12,12,17,19,21,39,45,42,10,48,0,29,0,125,84,127,124,233,238,197,130,306,291,425,431,471,475,497,497,587,558,581,506,757,706,911,888,952]} 1. d4 {[%emt 0:00:02]} d5 {[%emt 0:00:22]} 2. c4 {[%emt 0:00:02]} e6 {[%emt 0:00:14]} 3. Nc3 {[%emt 0:00:04]} Be7 {[%emt 0:00:41]} 4. Bf4 {[%emt 0:00:57]} Nf6 {[%emt 0:01:29]} 5. e3 {[%emt 0:00:01]} O-O {[%emt 0:00:25]} 6. Nf3 {[%emt 0:01:09]} Nbd7 {[%emt 0:00:15]} 7. c5 {[%emt 0:07:20]} c6 {[%emt 0:00:10]} 8. Bd3 {[%emt 0:00:48]} b6 {[%emt 0:00:10] CPLX 2.2 20 (Nf6-h5) (=20)} 9. b4 {[%emt 0:00:06] CPLX 2.5. D37: Queen's Gambit Declined: 5 Bf4.} a5 {[%emt 0:00:05] CPLX 2.4 0 (Nf6-h5) (=10)} 10. a3 {[%emt 0:00:29] CPLX 2.6} Ba6 {[%emt 0:00:08] [#] aiming for ...Bxd3. CPLX 2.6} 11. O-O {[%emt 0:00:09] CPLX 2.8. The position is equal.} Qc8 {[%emt 0:00:05] BESTDEEP} 12. Ne1 {[%emt 0:01:21] [#] CPLX 2.8 20 (h2-h3) (=5)} Ne4 $146 {[%emt 0:21:01] CPLX 2.9 20 (Qc8-b7) (=8)} ({Predecessor:} 12... Bd8 13. f3 Bc7 14. Bxc7 Qxc7 15. f4 axb4 16. axb4 Bxd3 17. Nxd3 Ne4 18. Nxe4 dxe4 {1-0 (27) Tomljanovic,I (1837)-Mijakovic,P (1407) Trogir 2022}) 13. Qc2 {[%emt 0:02:36] BESTDEEP} g5 {[%emt 0:14:42] CPLX 3.3} ({Don't play} 13... bxc5 14. Nxe4 dxe4 15. Bxa6 Rxa6 16. bxc5 $16) 14. Bg3 {[%emt 0:08:53] CPLX 3.5} f5 {[%emt 0:03:31] CPLX 3.3 18 (h7-h5) (=8)} ({But not} 14... bxc5 15. Nxe4 dxe4 16. Bxa6 Rxa6 17. bxc5 $16) 15. Ne2 {[%emt 0:28:50] BESTDEEP} Bf6 {[%emt 0:24:42] CPLX 3.2 8 (h7-h5) (=8)} 16. Rc1 {[%emt 0:01:20] CPLX 3.2 10 (Ra1-b1) (=4)} (16. Rb1 {feels hotter.} axb4 17. axb4 bxc5 18. bxc5 Bg7 19. Rc1) 16... axb4 {[%emt 0:10:27] CPLX 3.2} (16... Nxg3 {with more complications.} 17. hxg3 axb4 18. axb4 bxc5 19. bxc5 h5) 17. axb4 {[%emt 0:01:21] RECAPT} Nxg3 {[%emt 0:01:33] CPLX 3.1} 18. hxg3 {[%emt 0:03:30][%cal Bh2g3,Bg3f4,Bf4e5][%mdl 32] RECAPT} Bxd3 {[%emt 0:05:10] MISS-b6xc5 18 (b6xc5) (=8)} 19. Nxd3 {[%emt 0:00:02] RECAPT} b5 {[%emt 0:00:15] CPLX 2.4} 20. f4 {[%emt 0:03:30] CPLX 2.2 32 (Rc1-a1) (=5)} Ra3 {[%emt 0:01:30] CPLX 2.6 38 (Bf6-e7) (=9)} 21. Nc3 {[%emt 0:04:52] CPLX 2.7 48 (Rc1-a1) (=8)} (21. Ra1 $14 {should be considered.} Qa6 22. Rxa3 Qxa3 23. Qd2) 21... gxf4 {[%emt 0:06:06] CPLX 2.9 29 (Qc8-b7) (=11)} 22. gxf4 {[%emt 0:00:41] RECAPT 29 (Qc2-b2) (=10)} (22. Qb2 $5 {[%cal Rb2a3]} Qa6 23. gxf4 $11) 22... Kf7 {[%emt 0:00:23] [#] RELBLUND 125 (Qc8-b7) (=18)} (22... Qb7 $11 {keeps the balance.}) 23. Ne5+ $1 $16 {[%emt 0:18:48] DEEPSTRONG=>BLUNDERREACT} Bxe5 {[%emt 0:05:53] CPLX 3.9 43 (Nd7xe5) (=20)} 24. fxe5 {[%emt 0:04:49] RECAPT} Ke8 {[%emt 0:02:40] CPLX 3.6 109 (Kf7-g7) (=25)} (24... Kg7 $16 {is a better defense.}) 25. Ra1 $18 {[%emt 0:00:51] CPLX 2.7} Ra8 {[%emt 0:00:30] CPLX 3.1} 26. Qf2 {[%emt 0:03:42] CPLX 2.8 67 (Qc2-d1) (=11)} (26. Qd1 $18) 26... Rg8 $2 {[%emt 0:00:32] This costs Black the game. CPLX 2.8 176 (Rf8-f7) (=32)} (26... Rf7 $16 {was worth a try.} 27. Rxa8 Qxa8) 27. Qh4 {[%emt 0:03:13] CPLX 3.1} Nf8 {[%emt 0:00:30] CPLX 5.1 134 (Rg8-g7) (=37)} (27... Rg7 $142 28. Qh6 Re7) 28. Qh5+ {[%emt 0:01:00] CPLX 5.1. White is clearly winning.} Rg6 {[%emt 0:00:29] CPLX 4.0 40 (Nf8-g6) (=37)} 29. Ne2 {[%emt 0:00:55][%cal Bc3e2,Be2f4,Bf4h3,Bh3g5][%mdl 32] DEEPSTRONG} Ke7 {[%emt 0:00:13] CPLX 4.0 22 (Qc8-b8) (=36)} 30. Nf4 {[%emt 0:00:45] EASY} Rg7 {[%emt 0:00:47] CPLX 5.7 90 (Rg6-g4) (=39)} 31. Qh6 {[%emt 0:01:41] EASY} Rf7 {[%emt 0:00:24] BESTDEEP} 32. Nh3 {[%emt 0:00:24] CPLX 5.3 75 (g2-g4) (=12)} Kd7 {[%emt 0:00:32] EVAL 251 (Ke7-e8) (=46)} 33. g4 {[%emt 0:01:34] EVAL} Kc7 {[%emt 0:00:34] EVAL 205 (Ra8-a4) (=52)} 34. Ng5 {[%emt 0:00:06] EVAL} Rd7 {[%emt 0:00:00] Weighted Error Value: White=0.14 (very precise) /Black=0.45} 1-0